Cogmind - Beta 14 *** ADVENTURER MODE // 2024.10.11 @ 07:08:01 Player: Jefffff Result: Destroyed by AG-83660 with Assembled Focal Cannon Performance ------------- Evolutions (1) 500 Regions Visited (5) 1000 Robots Destroyed (72) 360 Value Destroyed (1600) 1600 Prototype IDs (11) 220 Alien Tech Used (0) 0 Bonus (985) 985 TOTAL SCORE: 4665 Bonus ------- Follower Combat Kills 242 Met Imprinter 300 Destroyed Z-Imprinter 1000 Friendly Fire -557 Cogmind --------- Core Integrity 0/400 Matter 300/300 Energy 98/100 System Corruption 0% Temperature Cool (6) Movement Rolling (135) Ox3 Location -7/Deep Caves Parts ------- > --- POWER (1) -------- Zionite Light DM Reactor > --- PROPULSION (4) --- Zionite Composite Leg I Armored Wheel Armored Wheel > --- UTILITY (2) ------ Huge Storage Unit > --- WEAPON (2) ------- Ripper > --- INVENTORY (25) --- Cooled Ion Engine Zionite Light DM Reactor Cryofiber Web Experimental Heat Sink Experimental Heat Sink Zionite Biocell (600) Zionite Biocell (600) Faulty Spectral Analyzer Experimental Signal Interpreter 0b10 Decoder Chip [Generic] Advanced Targeting Computer Tactical Coordination Suite Experimental Target Analyzer Improved Reaction Control System Zionite Weapon Casing Zionite Light Carapace Zionite Heavy Carapace Zionite Heavy Carapace Advanced System Shield Relay Coupler [NC] (69) Relay Coupler [Swarmer] (106) Relay Coupler [Demolisher] (31) CR-A16's Pointy Stick Peak State ------------ > --- POWER ------------ Zionite Light DM Reactor > --- PROPULSION ------- Zionite Composite Leg I Armored Wheel Armored Wheel Armored Wheel > --- UTILITY ---------- Improved Cooling System Huge Storage Unit > --- WEAPON ----------- Zionite Laser-S Ripper > --- INVENTORY -------- Cooled Ion Engine Zionite Light DM Reactor Cryofiber Web Experimental Heat Sink Experimental Heat Sink Zionite Biocell Zionite Biocell Spectral Analyzer Experimental Signal Interpreter 0b10 Decoder Chip [Generic] Advanced Targeting Computer Tactical Coordination Suite Experimental Target Analyzer Improved Reaction Control System Zionite Weapon Casing Zionite Light Carapace Zionite Heavy Carapace Zionite Heavy Carapace Advanced System Shield Relay Coupler [NC] Relay Coupler [Swarmer] Relay Coupler [Demolisher] CR-A16's Pointy Stick [Rating: 48] Favorites ----------- Power Cooled Ion Engine Engine Cooled Ion Engine Reactor Zionite Light DM Reactor Propulsion Armored Wheel Leg Zionite Composite Leg I Wheel Armored Wheel Hover Unit Zionite Glidesys I Utility Huge Storage Unit Device Hardlight Generator Storage Huge Storage Unit Protection Medium Armor Plating Weapon Heavy Assault Rifle Energy Gun Beam Rifle Ballistic Gun Heavy Assault Rifle Special Weapon RU-N14's Throwing Claymores Slashing Weapon Ripper Piercing Weapon CR-A16's Pointy Stick Build | -11 -10 -9 -9 -7 -7 ------- Run | Yrd Mat Mat Min Zio Dee Slots Evolved 2 | . . 2 . . . Power . | . . . . . . Propulsion 2 | . . 2 . . . Utility . | . . . . . . Weapon . | . . . . . . Parts Attached 72 | 8 13 18 . 6 27 Power 11 | 1 3 3 . . 4 Engine 8 | 1 3 3 . . 1 Core . | . . . . . . Reactor 3 | . . . . . 3 Propulsion 22 | 3 5 8 . . 6 Treads . | . . . . . . Leg 2 | 1 . . . . 1 Wheel 19 | 2 5 8 . . 4 Hover 1 | . . . . . 1 Flight . | . . . . . . Utility 13 | 1 2 1 . 1 8 Device 4 | . . . . 1 3 Storage 4 | 1 2 . . . 1 Processor . | . . . . . . Hackware . | . . . . . . Protection 5 | . . 1 . . 4 Artifact . | . . . . . . Weapon 26 | 3 3 6 . 5 9 Energy Gun 9 | 2 2 . . . 5 Energy Cannon . | . . . . . . Ballistic Gun 13 | 1 1 6 . 3 2 Ballistic Cannon . | . . . . . . Launcher . | . . . . . . Special Weapon 2 | . . . . 1 1 Impact Weapon . | . . . . . . Slashing Weapon 1 | . . . . . 1 Piercing Weapon 1 | . . . . 1 . Special Melee Weapon . | . . . . . . Unidentified Prototypes 11 | . . 1 . 1 9 Parts Lost 15 | . 2 1 . . 12 Power 1 | . . . . . 1 Propulsion 6 | . 1 . . . 5 Utility 2 | . . . . . 2 Weapon 6 | . 1 1 . . 4 Highest Loss Streak 7 | . 2 1 . . 7 To Critical Strikes . | . . . . . . Average Slot Usage (%) 98 | . 96 99 100 100 97 Engine 10 | . 14 11 11 11 3 Reactor 1 | . . . . . 7 Wheel 40 | . 28 43 44 44 40 Device 3 | . . . . 7 7 Storage 15 | . 24 19 11 11 11 Protection 2 | . . 2 11 3 3 Energy Gun 5 | . 14 7 . . 7 Ballistic Gun 15 | . 14 14 22 20 8 Peak Build Rating 48 | 6 12 22 22 33 48 Average Rating 23 | 4 9 18 22 27 38 On Entrance 15 | . 6 12 22 22 30 Naked Turns . | . . . . . . Heaviest Build 134 | 12 127 134 101 104 104 Greatest Support 48 | 26 26 48 48 48 48 Greatest Overweight (x) 5 | 1 5 2 2 2 3 Average Overweight (x) 1 | . 1 2 2 2 2 Largest Inventory Capacity 25 | 8 25 25 25 25 25 Average Capacity 23 | 7 16 25 25 25 25 Most Carried 25 | 8 20 25 25 25 25 Average Carried 22 | 5 14 24 25 24 24 Final Capacity 25 | 8 25 25 25 25 25 Final Carried 25 | 8 20 25 25 25 25 Class Distribution -------------------- 86% | Mutant 13% | Scavenger-Mutant Dominant Class ---------------- Mutant | -10/Materials Mutant | -9/Materials Mutant | -9/Mines Mutant | -7/Zion Scavenger-Mutant | -7/Deep Caves Resources | -11 -10 -9 -9 -7 -7 ----------- Run | Yrd Mat Mat Min Zio Dee Matter Collected 1271 | 286 124 398 26 74 363 Remotely . | . . . . . . Salvage Created 2538 | 101 581 1321 63 . 472 Parts 177 | 7 41 93 10 . 26 Haulers Intercepted 5 | . 1 4 . . . Recyclers Shooed 2 | . . 2 . . . Parts Field Recycled . | . . . . . . Retrieved Matter . | . . . . . . Parts Self-Destructed . | . . . . . . Prevented 1 | . . . . 1 . Kills | -11 -10 -9 -9 -7 -7 ------- Run | Yrd Mat Mat Min Zio Dee Combat Hostiles Destroyed 48 | . 15 22 4 . 7 Melee 1 | . . . . . 1 Guns 45 | . 14 22 4 . 5 AOE 2 | . 1 . . . 1 Classes Destroyed 14 | 2 5 4 . . 3 Worker 4 | . 3 1 . . . Builder 1 | . . 1 . . . Tunneler 2 | 2 . . . . . Hauler 5 | . 1 4 . . . Recycler 3 | 1 1 1 . . . Operator 2 | . . 2 . . . Watcher 6 | . 1 5 . . . Swarmer 17 | . 6 7 4 . . Grunt 16 | . 9 7 . . . Brawler 1 | . . 1 . . . Sentry 7 | . . 7 . . . Z-Light 6 | . . . . . 6 Assembled 1 | . . . . . 1 Butcher 2 | . . . . . 2 Best Kill Streak 10 | 2 10 9 4 . 2 Combat Bots Only 5 | . 4 5 4 . 2 Max Kills in Single Turn 4 | 1 4 2 2 . 2 Gunslinging 1 | . . 1 1 . . Exploded 1 | . 1 . . . 1 Melee 1 | . . . . . 1 Uniques/NPCs Destroyed 1 | . . . . . 1 Z-Imprinter (-7/Deep Caves) Combat | -11 -10 -9 -9 -7 -7 -------- Run | Yrd Mat Mat Min Zio Dee Hostile Shots Fired 232 | . 65 82 13 . 72 Missed 62 | . 14 28 7 . 13 Damage Taken 2683 | . 425 577 31 . 1650 Core 555 | . 123 117 4 . 311 Absorbed by Shields 4 | . . . . . 4 Redirected to Shielding 74 | . . . . . 74 Ignored by Resistances 751 | . 134 167 12 . 438 Regen/Repaired (Parts) 111 | . . 111 . . . Core Remaining (%) 75 | 100 50 . . . . Volleys Fired 188 | 6 46 83 4 2 47 Largest 2 | 2 2 2 2 2 2 Hottest 96 | 60 85 79 46 51 96 Shots Fired 331 | 12 83 166 8 4 58 Gun 328 | 12 83 166 8 4 55 Cannon . | . . . . . . Launcher . | . . . . . . Special 3 | . . . . . 3 Kinetic 185 | 6 44 90 8 4 33 Thermal 143 | 6 39 76 . . 22 Explosive 3 | . . . . . 3 Electromagnetic . | . . . . . . Robot Hit Streak 17 | 10 16 17 2 . 5 Robot Miss Streak 4 | . 3 3 3 . 4 Penetration Max . | . . . . . . Secondary Targets 14 | . 5 6 2 . 1 Max Gunslinging Chain 1 | . 1 1 1 . 1 Shots Hit Robots 229 | 10 56 128 4 . 31 Core Hits 119 | 4 32 59 4 . 20 Critical Kills 1 | . . 1 . . . Critical Parts Destroyed . | . . . . . . Critical Strikes 8 | . 2 5 . . 1 Burn 7 | . 2 4 . . 1 Destroy 1 | . . 1 . . . Melee Attacks 4 | . . . . 3 1 Impact . | . . . . . . Slashing 1 | . . . . . 1 Piercing 3 | . . . . 3 . Sneak Attacks . | . . . . . . Combat Hostiles . | . . . . . . Follow-up Attacks . | . . . . . . Damage Inflicted 4101 | 98 1066 1597 67 . 1273 Guns 3014 | 98 649 1597 67 . 603 Cannons . | . . . . . . Explosions 1002 | . 417 . . . 585 Melee 30 | . . . . . 30 Ramming . | . . . . . . Kinetic 1404 | 30 257 730 67 . 320 Thermal 2027 | 68 809 867 . . 283 Explosive 585 | . . . . . 585 Electromagnetic . | . . . . . . Impact . | . . . . . . Slashing 85 | . . . . . 85 Piercing . | . . . . . . Highest Corruption 2 | . 2 . . . . Average Corruption 1 | . 1 . . . . Corruption Purged . | . . . . . . Corruption Blocked . | . . . . . . Effects 4 | . 4 . . . . Matter Fused 3 | . 3 . . . . Data Loss (minor) 1 | . 1 . . . . Overload Shots . | . . . . . . Overflow Damage 68 | . 68 . . . . Projectiles . | . . . . . . Explosions 68 | . 68 . . . . Melee . | . . . . . . Knockbacks . | . . . . . . Impact . | . . . . . . Kinetic . | . . . . . . Secondary . | . . . . . . Self-Inflicted Damage 41 | . 41 . . . . Shots 1 | . 1 . . . . Rammed . | . . . . . . Targets Rammed . | . . . . . . Kicked . | . . . . . . Crushed . | . . . . . . Highest Temperature 449 | 40 386 176 . . 449 Average Temperature 104 | 24 105 34 . . 195 Received Heat Transfer 972 | . 207 246 . . 519 Effects 11 | . 3 . . . 8 Shutdowns 1 | . . . . . 1 Energy Bleed 2 | . . . . . 2 Interference 5 | . 1 . . . 4 Short Circuit 1 | . 1 . . . . Damage (minor) 2 | . 1 . . . 1 Siege Activations . | . . . . . . Robots Corrupted . | . . . . . . Combat Hostiles . | . . . . . . Parts Fried . | . . . . . . Impact Corruptions . | . . . . . . Robots Melted . | . . . . . . Combat Hostiles . | . . . . . . Parts Melted 9 | . 3 3 . . 3 Heat Transferred 4435 | 150 1325 2479 . . 481 Parts Sabotaged . | . . . . . . Parts Stolen . | . . . . . . Parts Stripped . | . . . . . . Power Chain Reactions . | . . . . . . Alert | -11 -10 -9 -9 -7 -7 ------- Run | Yrd Mat Mat Min Zio Dee Peak Influence 366 | 15 366 198 92 . . Initial 8 | . 8 . 2 . . Average 97 | 7 168 70 87 . . Maximum Alert Level 1 | . 1 . . . . Low Security (%) 86 | 100 53 100 100 . . Level 1 13 | . 46 . . . . Level 2 . | . . . . . . Level 3 . | . . . . . . Level 4 . | . . . . . . Level 5 . | . . . . . . High Security . | . . . . . . Max Security . | . . . . . . Squads Dispatched 5 | . 2 3 . . . Investigation 3 | . 2 1 . . . Extermination . | . . . . . . Reinforcement 2 | . . 2 . . . Assault . | . . . . . . Garrison . | . . . . . . Intercept . | . . . . . . Searches Triggered . | . . . . . . Construction Impeded . | . . . . . . Haulers Reinforced . | . . . . . . Active Scanning Responses . | . . . . . . Cargo Convoy Interrupts . | . . . . . . Stealth | -11 -10 -9 -9 -7 -7 --------- Run | Yrd Mat Mat Min Zio Dee Distress Signals 3 | . 2 1 . . . Communications Jammed . | . . . . . . Distress Signals . | . . . . . . Times Spotted 73 | . 22 33 4 . 14 Peak Tracking Total 7 | . 7 5 4 . 3 Tactical Retreats 1 | . 1 . . . . Traps | -11 -10 -9 -9 -7 -7 ------- Run | Yrd Mat Mat Min Zio Dee Traps Triggered 8 | . 6 2 . . . Indirectly . | . . . . . . Trap Hack Attempts . | . . . . . . Triggered . | . . . . . . Disarmed . | . . . . . . Reprogrammed . | . . . . . . Reused . | . . . . . . Traps Extracted . | . . . . . . Installed . | . . . . . . Triggered . | . . . . . . Machines | -11 -10 -9 -9 -7 -7 ---------- Run | Yrd Mat Mat Min Zio Dee Machines Disabled 5 | . 3 . . 1 1 Max in Single Turn 2 | . 2 . . . . Machines Repaired . | . . . . . . Machines Dismantled . | . . . . . . Machines Sabotaged . | . . . . . . Overloaded Fab Kills . | . . . . . . Hacking | -11 -10 -9 -9 -7 -7 --------- Run | Yrd Mat Mat Min Zio Dee Machines Accessed 14 | . 6 8 . . . Terminals 12 | . 6 6 . . . Fabricators . | . . . . . . Repair Stations 1 | . . 1 . . . Recycling Units . | . . . . . . Scanalyzers 1 | . . 1 . . . Garrison Access . | . . . . . . Total Hacks 48 | . 19 29 . . . Successful 34 | . 12 22 . . . Failed 14 | . 7 7 . . . Catastrophic . | . . . . . . Database Lockouts . | . . . . . . Manual 42 | . 19 19 . 4 . Terminals 38 | . 19 19 . . . Fabricators . | . . . . . . Repair Stations 6 | . . 6 . . . Recycling Units . | . . . . . . Scanalyzers 4 | . . 4 . . . Garrison Access . | . . . . . . Terminal Hacks 11 | . 5 6 . . . Robot Analysis 3 | . 2 1 . . . Terminal Index 1 | . 1 . . . . Alert Level 1 | . . 1 . . . Unreport Threat 3 | . 1 2 . . . Dispatch Records 1 | . 1 . . . . Recall Investigation 1 | . . 1 . . . Recall Reinforcements 1 | . . 1 . . . Fabricator Hacks . | . . . . . . Repair Station Hacks 6 | . . 6 . . . Scan Component 3 | . . 3 . . . Repair 3 | . . 3 . . . Recycling Unit Hacks . | . . . . . . Scanalyzer 4 | . . 4 . . . Insert Component 2 | . . 2 . . . Analyze 2 | . . 2 . . . Garrison Access Hacks . | . . . . . . Unauthorized Hacks 13 | . 7 6 . . . Terminals 13 | . 7 6 . . . Track 1 | . 1 . . . . Botnet 12 | . 6 6 . . . Fabricators . | . . . . . . Repair Stations . | . . . . . . Recycling Units . | . . . . . . Scanalyzers . | . . . . . . Garrison Access . | . . . . . . Data Cores Recovered . | . . . . . . Used . | . . . . . . Hacking Detections 12 | . 6 6 . . . Full Trace Events . | . . . . . . Feedback Events . | . . . . . . Feedback Blocked . | . . . . . . Robot Schematics Acquired 4 | . . . . 4 . Robots Built . | . . . . . . Authchips . | . . . . . . Time . | . . . . . . Total Robot Build Rating . | . . . . . . Part Schematics Acquired 16 | . . 2 . 14 . Parts Built . | . . . . . . Authchips . | . . . . . . Time . | . . . . . . Total Part Build Rating . | . . . . . . Parts Repaired 3 | . . 3 . . . Time 96 | . . 96 . . . Parts Recycled . | . . . . . . Recycled Matter . | . . . . . . Retrieved Matter . | . . . . . . Retrieved Components . | . . . . . . Parts Scanalyzed 2 | . . 2 . . . Part Schematics Acquired 2 | . . 2 . . . Parts Damaged . | . . . . . . Bothacking | -11 -10 -9 -9 -7 -7 ------------ Run | Yrd Mat Mat Min Zio Dee Used RIF Installer . | . . . . . . Robots Hacked . | . . . . . . Non-combat . | . . . . . . Combat . | . . . . . . Robot Hacks Applied . | . . . . . . Relay Couplers Released . | . . . . . . Fabnet Peak Effective % . | . . . . . . Robots Rewired . | . . . . . . Allies Hacked . | . . . . . . Hacks Repelled . | . . . . . . Allies | -11 -10 -9 -9 -7 -7 -------- Run | Yrd Mat Mat Min Zio Dee Total Allies 10 | . . . . 10 . Largest Group 10 | . . . . 10 10 Highest-Rated Group 267 | . . . . 267 267 Highest-Rated Ally 31 | . . . . 31 31 Total Orders . | . . . . . . Ally Attacks 115 | . . . . 1 114 Total Damage 1621 | . . . . 53 1568 Kills 13 | . . . . 1 12 Allies Corrupted . | . . . . . . Allies Melted . | . . . . . . Intel | -11 -10 -9 -9 -7 -7 ------- Run | Yrd Mat Mat Min Zio Dee Robot Analysis Total 3 | . 2 1 . . . Derelict Logs Recovered 1 | . . . . 1 . Drone Launches . | . . . . . . Drone Recoveries . | . . . . . . Exploration | -11 -10 -9 -9 -7 -7 ------------- Run | Yrd Mat Mat Min Zio Dee Turns Passed 5745 | 99 808 1792 154 1951 941 Spaces Moved 3736 | 70 506 910 111 1565 574 Core 2 | 2 . . . . . Treads . | . . . . . . Legs . | . . . . . . Wheels 3734 | 68 506 910 111 1565 574 Hover . | . . . . . . Flight . | . . . . . . Fastest Speed 50 | 50 90 120 120 120 105 Average Speed 118 | 87 112 120 120 120 120 Slowest Speed 165 | 100 165 120 120 120 135 Overloaded Moves . | . . . . . . Propulsion Burnouts . | . . . . . . Robots Hopped . | . . . . . . Cave-ins Triggered . | . . . . . . Exploration Rate (%) 59 | 4 91 69 30 88 73 Regions Visited 5 Branch Regions 3 Pre-discovered Areas . | . . . . . . Known Exits Taken . | . . . . . . Unknown Exits Taken 5 | 1 1 1 1 1 . Scrap Searched 4 | . . . . 4 . Spaces Dug . | . . . . . . Terrain Destroyed 56 | . 7 . . . 49 Melee . | . . . . . . Projectile 9 | . . . . . 9 AOE 47 | . 7 . . . 40 Terrain Rammed . | . . . . . . Walls Destroyed . | . . . . . . Machines Disabled . | . . . . . . Actions | -11 -10 -9 -9 -7 -7 --------- Run | Yrd Mat Mat Min Zio Dee Total 4786 | 93 683 1475 124 1637 774 Wait 624 | . 86 416 10 25 87 Move 3731 | 69 505 909 110 1564 574 Hop . | . . . . . . Pick Up 89 | 10 19 23 . 18 19 Fast Attach 12 | 4 1 4 . . 3 Attach 14 | 2 2 3 . . 7 Detach . | . . . . . . Swap 46 | 2 10 11 . 6 17 Drop 78 | . 14 26 . 19 19 Fire 188 | 6 46 83 4 2 47 Melee 4 | . . . . 3 1 Ram . | . . . . . . Kick . | . . . . . . Crush . | . . . . . . Escape Stasis . | . . . . . . Rewire . | . . . . . . Trap . | . . . . . . Miscellaneous . | . . . . . . Route ------- -11/Scrapyard -10/Materials (discovered 4 exits: *Mat x3 / [*Min]) -9/Materials (discovered 3 exits: [*Mat x2] / [*Min]) -9/Mines (discovered 2 exits: [*Exi] / *Zio) -7/Zion (discovered 2 exits: [*Dee] / [*Pro]) -7/Deep Caves History --------- Turn | Location | Event 7 | -11/Scrapyard | Discovered new exit (range 15) 100 | -11/Scrapyard | Entered Materials 314 | -10/Materials | Build established: Mutant 489 | -10/Materials | Discovered new exit (range 16) 592 | -10/Materials | Discovered new exit (range 9) 688 | -10/Materials | Discovered new exit (range 12) 847 | -10/Materials | Discovered new exit (range 15) 908 | -10/Materials | Entered another Materials area 908 | -9/Materials | Evolved 2 slots: Propulsion x2 1364 | -9/Materials | Repaired Arm. Wheel 1397 | -9/Materials | Repaired Arm. Wheel 1431 | -9/Materials | Repaired Arm. Wheel 1453 | -9/Materials | Discovered new exit (range 5) 2065 | -9/Materials | Discovered new exit (range 15) 2478 | -9/Materials | Discovered new exit (range 6) 2700 | -9/Materials | Entered Mines 2791 | -9/Mines | Deemed a non-threat by the Exiles lab entrance 2791 | -9/Mines | Discovered new exit (range 5) 2840 | -9/Mines | YI-UF0 nonchalantly dropped a Grenade Launcher on the ground 2849 | -9/Mines | A Derelict revealed a hidden shortcut to a safe place 2854 | -9/Mines | Entered Zion 3221 | -7/Zion | Found Prototype Processor 3224 | -7/Zion | Found Prototype Processor 3226 | -7/Zion | Found Prototype Processor 3445 | -7/Zion | Gained Derelict followers 3531 | -7/Zion | Found CR-A16's Pointy Stick 3557 | -7/Zion | Learned 8 Factory zone layouts 3767 | -7/Zion | Found Prototype Special Weapon 3768 | -7/Zion | Identified RU-N14's Throwing Claymores 3791 | -7/Zion | Found RU-N14's Throwing Claymores 3883 | -7/Zion | Met Imprinter 4222 | -7/Zion | Discovered new exit (range 14) 4243 | -7/Zion | Gained Derelict followers 4565 | -7/Zion | Acquired unknown access codes intercepted by a Zionite 4756 | -7/Zion | Opened final containment barrier to the Deep Caves 4775 | -7/Zion | Discovered new exit (range 3) 4775 | -7/Zion | Saw the warning signs outside the Deep Caves entrance 4805 | -7/Zion | Entered Deep Caves 4805 | -7/Deep Caves | Accompanied by 10 allies 4992 | -7/Deep Caves | Z-Facility disabled 5047 | -7/Deep Caves | Attacked by Z-Imprinter 5056 | -7/Deep Caves | Allies destroyed Z-Imprinter 5081 | -7/Deep Caves | Found Prototype Protection 5081 | -7/Deep Caves | Identified Zio. Weapon Casing 5112 | -7/Deep Caves | Lost 5 allies 5321 | -7/Deep Caves | Lost 4 allies 5336 | -7/Deep Caves | Lost 7 parts (1p3n1u2w) 5348 | -7/Deep Caves | Core integrity fell below 50% 5385 | -7/Deep Caves | Found Zio. Weapon Casing 5442 | -7/Deep Caves | Found Zio. Weapon Casing 5491 | -7/Deep Caves | Found Prototype Protection 5494 | -7/Deep Caves | Found Prototype Protection 5632 | -7/Deep Caves | Build established: Scavenger-Mutant 5726 | -7/Deep Caves | Spotted AG-83660 5735 | -7/Deep Caves | Core integrity fell below 20% 5746 | -7/Deep Caves | Destroyed by AG-83660 with Assembled Focal Cannon Last Messages --------------- 05489_ Dropped Cld. Ion Engine. 05490_ Dropped Zio. Biocell. 05490_ Dropped Imp. Reaction Control System. 05491_ Acquired Prototype Protection. 05498_ Acquired Zio. Light Carapace. 05504_ Extracted 4 energy. 05505_ Dropped Zio. Biocell. 05505_ Acquired Zio. Biocell. 05512_ Acquired Prototype Leg. 05512_ Identified Zio. Composite Leg I. 05570_ Acquired 10 matter. 05573_ Dropped Imp. Reaction Control System. 05573_ Acquired Imp. Reaction Control System. 05660_ as-02737 destroyed. 05728_ AG-83660: "DSI9AT1D G8OHIBQ29FWG 26R186 QD12WHW8W33 TDK1 81FTS" 05730_ Zio. Laser-S destroyed. 05738_ Arm. Wheel destroyed. 05738_ Imp. Cooling System destroyed. Map ----- +----------------------------------------------------+ | ??????????????????????????????????? | | ??????????????????????????????????? | | ??????????????????????????????????? | | ??????????????????????????????????? | | ??????????????????????????????????? | | ??????????????????????????????????? | | ??????????????????????????????????? | | ??????????????????????????????????? | | ?????????????????????????????????## | | ????????????????????????????????## | | ?????????? ???????????????????# | | ????????? ??????= ?????# | | ????????# = ? = ##??## | | ????????? #?## | | ????????# M #?# | | ????????? #?# | | ????????? = ] #?## | | ?????????" = #??## | | ?????????"g g #???# | | ?????????" h #???# | | ?????????" = ] ] ##??# | | ????????"" ! l #??# | | ????????# ! #??# | | ????????" h #??# | | ????????"G ! / #### | | ????????" @ / / | | ????????""" / | | ????????" | | ????????"" l ## | | ????????" ###### | | ????????"" ##????? | | ????????" # # #?????? | | ????????" #### ## ## ##?????? | | ????????""" ###??# ## ####??????? | | ?????????" ????#### ??????????? | | ?????????######????????#??????????? | | | | | | | | | | | | | | | | | | | | | | | | | | | | | +----------------------------------------------------+ Best States ------------- Heat Dissipation 55 Energy Generation 27 Energy Capacity 280 Matter Stores 300 Matter Capacity 300 Sight Range 16 Terrain Scan Density 10 Armor Coverage 400 Resistance: KI 20 Resistance: TH 20 Resistance: EX 20 Resistance: EM 20 Resistance: I 20 Resistance: S 20 Resistance: P 20 Power Shielding 33 Weapon Shielding 100 Evasion (%) 44 Offensive Hacking 10 Item Schematics ----------------- Arm. Wheel | -9/Materials | Scanalyzed Med. Armor Plating | -9/Materials | Scanalyzed Remote Datajack | -7/Zion | Archive Imp. Target Analyzer | -7/Zion | Archive Fission Core | -7/Zion | Archive Hvy. Rocket Launcher | -7/Zion | Archive Imp. Arc Projector | -7/Zion | Archive Imp. Titanium Leg | -7/Zion | Archive Energy Well | -7/Zion | Archive Recalibrator | -7/Zion | Archive Lrn. Missile Launcher | -7/Zion | Archive Gauss Rifle | -7/Zion | Archive Adv. Signal Interpreter | -7/Zion | Archive Force Field | -7/Zion | Archive Power Maul | -7/Zion | Archive Imp. Weapon Cycler | -7/Zion | Archive Robot Schematics ------------------ H-55 Commando | -7/Zion | Archive A-02 Transporter | -7/Zion | Archive B-48 Gladiator | -7/Zion | Archive H-77 Assassin | -7/Zion | Archive Fabricated ------------ Nothing Alien Tech Used ----------------- None Achievements -------------- None Challenges ------------ None Game ------ Seed SalvageExperimentalComputer Manual? 0 Play Time 00:40:41 Cumulative 160.3 hours Start 2024.10.11 @ 06:27:49 End 2024.10.11 @ 07:08:01 Sessions 1 Manual Loads 0 Difficulty Adventurer Special Mode None Game No. 206 Rogue 0 Adventurer 206 Explorer 0 Win Type - Total 0 Types 0/0/0/0/0/0/0/0/0 Lore% 58 Gallery% 54 Achievement% 43 Wizard Run 0 Options --------- Layout 2 ASCII 0 Keyboard 0 Movement Mouse Keybinds 0 Fullscreen 2 Font 48/Smallcaps Map View 50x44 Zoom Use 2% Tactical HUD 1 Map Filters NONE Filters NONE Steam 1 RUN: 8514f391-7a77-49b3-8352-453299eeb027